bitfinex-derivatives/quotes_SOLF0:USTF0_20260114
["timestamp","ask_amount","ask_price","bid_price","bid_amount"]
[1768405201733,3.24423188,146.67,146.59,9.15317238]
[1768405201927,3.24423188,146.67,146.59,3.01257238]
[1768405202235,0.04551432,146.65,146.59,3.01257238]
[1768405202934,0.04551432,146.65,146.61,0.04604063]
[1768405204036,0.04551432,146.65,146.57,3.01257238]
[1768405204535,0.04551432,146.65,146.58,6.1411]
[1768405204725,0.04551432,146.65,146.57,3.01257238]
[1768405205234,0.04551432,146.65,146.57,9.15387238]
[1768405206335,0.04551432,146.65,146.54,3.01257238]
[1768405206336,9.38343188,146.63,146.54,3.01257238]
[1768405206535,3.24423188,146.62,146.54,3.01257238]
[1768405206928,3.24423188,146.62,146.54,9.15527238]
[1768405207131,6.1387,146.64,146.54,3.01257238]
[1768405207332,0.04346157,146.59,146.54,3.01257238]
[1768405208742,6.138,146.66,146.57,3.01257238]
[1768405209031,3.24423188,146.67,146.58,3.01257238]
[1768405209228,9.38173188,146.67,146.58,3.01257238]
[1768405209832,3.24423188,146.67,146.58,3.01257238]
[1768405210137,0.05211125,146.64,146.58,3.01257238]
[1768405210332,0.05211125,146.64,146.55,3.01257238]
[1768405210934,6.1387,146.64,146.55,3.01257238]
[1768405211136,3.24423188,146.65,146.55,3.01257238]
[1768405211330,0.05002842,146.61,146.55,3.01257238]
[1768405212238,0.05002842,146.61,146.54,80.58]
[1768405213035,0.05002842,146.61,146.54,83.59257238]
[1768405215032,0.05002842,146.61,146.55,6.1422]
[1768405216041,0.05002842,146.61,146.56,3.01257238]
[1768405216944,0.05002842,146.61,146.56,9.15437238]
[1768405217335,0.05002842,146.61,146.54,86.7225]
[1768405218735,3.2942603,146.61,146.53,3.01257238]
[1768405220238,3.2942603,146.61,146.51,80.58]
[1768405220440,3.2942603,146.61,146.51,83.8248915]
[1768405220839,3.24423188,146.61,146.51,83.8248915]
[1768405221044,6.1404,146.6,146.51,83.8248915]
[1768405221350,0.04758863,146.57,146.51,83.8248915]
[1768405222048,0.04758863,146.57,146.49,3.13441459]
[1768405222247,0.04758863,146.57,146.5,3.13441459]
[1768405222649,0.04758863,146.57,146.5,9.27891459]
[1768405222847,0.04758863,146.57,146.51,3.13441459]
[1768405223346,0.04758863,146.57,146.52,5.22047656]
[1768405223857,0.04758863,146.57,146.53,3.13441459]
[1768405224351,3.004467,146.66,146.56,2.08606197]
[1768405224655,2.08606197,146.67,146.58,5.22047656]
[1768405224956,8.22446197,146.65,146.58,3.13441459]
[1768405225347,2.08606197,146.66,146.58,3.13441459]
[1768405225545,2.08606197,146.66,145.32,120.80514601]
[1768405225546,2.08606197,146.62,146.53,5.22047656]
[1768405225755,2.08606197,146.63,146.54,83.71441459]
[1768405225950,95.4746,146.67,146.56,3.13441459]
[1768405225951,2.08606197,146.65,146.56,3.13441459]
[1768405226151,6.1388,146.64,146.56,3.13441459]
[1768405226950,2.08606197,146.65,146.57,2.08606197]
[1768405227155,2.08606197,146.65,146.58,3.13441459]
[1768405227360,3.004467,146.67,146.58,3.13441459]
[1768405227658,3.004467,146.67,146.6,0.05239225]
[1768405228360,3.004467,146.66,146.6,0.05239225]
[1768405228657,0.04680194,146.65,146.55,3.13441459]
[1768405228848,6.26149298,146.64,146.55,3.13441459]
[1768405229257,3.004467,146.64,146.55,3.13441459]
[1768405229963,0.05049236,146.61,146.55,3.13441459]
[1768405231258,3.25702598,146.68,146.59,3.13441459]
[1768405231459,6.26149298,146.68,146.59,3.13441459]
[1768405231666,6.26149298,146.66,146.57,0.04772644]
[1768405231864,3.004467,146.65,146.57,0.04772644]
[1768405232062,3.004467,146.65,146.56,3.13441459]
[1768405232252,6.1387,146.64,146.56,3.13441459]
[1768405232454,3.004467,146.65,146.56,3.13441459]
[1768405232659,3.25702598,146.67,146.59,0.04991462]
[1768405233358,6.26149298,146.67,146.59,0.04991462]
[1768405233759,6.1379,146.66,146.59,0.04991462]
[1768405233959,3.004467,146.66,146.59,0.04991462]
[1768405234470,9.142467,146.66,146.59,0.04991462]
[1768405235964,6.1383,146.65,146.59,0.04991462]
[1768405237368,3.004467,146.65,146.54,3.25702598]
[1768405237574,3.05593099,146.63,146.53,3.13441459]
[1768405238069,3.004467,146.63,146.53,3.13441459]
[1768405238574,6.14,146.61,146.53,3.13441459]
[1768405238872,0.04780156,146.59,146.53,3.13441459]
[1768405240277,0.04780156,146.59,146.53,6.39144057]
[1768405240466,6.26149298,146.66,146.55,3.17906517]
[1768405240671,3.004467,146.66,146.56,3.13441459]
[1768405241776,3.004467,146.65,146.53,12.53444057]
[1768405242078,6.1396,146.62,146.54,3.13441459]
[1768405242783,6.14,146.61,146.54,3.13441459]
[1768405243285,0.04844875,146.59,146.54,3.13441459]
[1768405244772,0.04844875,146.59,146.52,6.1436]
[1768405245078,0.04844875,146.59,146.52,3.13441459]
[1768405245668,9.19381575,146.59,146.5,80.58]
[1768405245983,3.05291575,146.59,146.49,3.13441459]
[1768405246276,23.484467,146.61,146.5,3.13441459]
[1768405246582,0.04813139,146.55,146.5,3.13441459]
[1768405246779,0.04813139,146.55,146.51,6.144]
[1768405247074,6.1405,146.6,146.54,0.04564234]
[1768405247280,3.004467,146.61,146.54,0.04564234]
[1768405248884,9.144467,146.61,146.54,0.04564234]
[1768405250079,3.25702598,146.63,146.54,9.32275693]
[1768405250080,6.1394,146.63,146.54,9.32275693]
[1768405250284,3.004467,146.62,146.54,3.18005693]
[1768405250486,3.004467,146.62,146.54,0.04564234]
[1768405250783,6.1401,146.61,146.52,6.1435]
[1768405250983,9.38051673,146.61,146.52,6.1435]
[1768405251379,9.38051673,146.61,146.52,9.37230169]
[1768405252585,6.1394,146.63,146.54,3.22880169]
[1768405252888,9.37981673,146.63,146.54,3.22880169]
[1768405253289,6.1398,146.62,146.54,3.22880169]
[1768405254686,3.24041673,146.61,146.51,6.48582767]
[1768405255289,3.24041673,146.61,146.52,3.22880169]
[1768405255789,6.1404,146.6,146.52,9.37240169]
[1768405255986,6.1404,146.6,146.52,3.22880169]
[1768405256291,3.24041673,146.61,146.52,3.22880169]
[1768405257792,6.1408,146.59,146.52,3.22880169]
[1768405258489,3.24041673,146.58,146.49,6.48582767]
[1768405258690,3.24041673,146.58,146.47,83.80880169]
[1768405258889,3.24041673,146.57,146.47,83.80880169]
[1768405259096,3.24041673,146.57,146.47,3.22880169]
[1768405259097,3.24041673,146.56,146.47,3.22880169]
[1768405259692,6.1434,146.53,146.44,3.22880169]
[1768405259887,3.24041673,146.54,146.45,3.25702598]
[1768405260084,3.24041673,146.54,146.46,3.22880169]
[1768405260292,3.24041673,146.54,146.46,9.37500169]
[1768405261087,3.24041673,146.58,146.47,3.22880169]
[1768405261291,3.24041673,146.58,146.47,9.37450169]
[1768405261583,3.24041673,146.61,146.48,3.22880169]
[1768405261892,3.24041673,146.61,146.52,3.22880169]
[1768405262788,3.24041673,146.61,146.53,6.1432]
[1768405262986,3.24041673,146.61,146.53,9.37200169]
[1768405263189,3.24041673,146.64,146.53,3.22880169]
[1768405263694,3.24041673,146.64,146.5,95.5783]
[1768405263695,9.37931673,146.64,146.55,9.37110169]
[1768405263994,3.24041673,146.64,146.55,9.37110169]
[1768405264191,3.24041673,146.64,146.56,3.22880169]
[1768405264393,6.1381,146.66,146.56,9.37070169]
[1768405264595,3.24041673,146.67,146.58,0.04695119]
[1768405265082,3.24041673,146.67,146.57,6.1415]
[1768405265489,3.24041673,146.67,146.61,0.04630566]
[1768405265691,3.24041673,146.66,146.56,3.22880169]
[1768405266089,0.04537249,146.65,146.56,3.22880169]
[1768405266698,3.24041673,146.65,146.56,3.22880169]
[1768405267101,0.04862925,146.62,146.56,3.22880169]
[1768405268499,0.04862925,146.62,146.55,86.7421]
[1768405268999,0.04862925,146.62,146.55,6.1421]
[1768405269498,0.04862925,146.62,146.56,6.1418]
[1768405269697,0.04862925,146.62,146.55,3.22880169]
[1768405271295,3.28904598,146.62,146.52,83.80880169]
[1768405271500,3.28904598,146.62,146.52,3.22880169]
[1768405271796,3.24041673,146.62,146.52,3.22880169]
[1768405272202,0.04951308,146.58,146.52,3.22880169]
[1768405272512,9.37911673,146.64,146.54,3.22880169]
[1768405272695,3.24041673,146.63,146.56,0.04878599]
[1768405273298,3.24041673,146.63,146.54,3.22880169]
[1768405273498,9.37951673,146.63,146.54,3.22880169]
[1768405273702,9.37951673,146.63,146.58,0.05239431]
[1768405273896,6.1396,146.62,146.58,0.05239431]
[1768405274102,0.04535943,146.6,146.54,3.22880169]
[1768405275002,0.04535943,146.6,146.51,3.22880169]
[1768405275003,3.28577616,146.6,146.51,3.22880169]
[1768405275500,9.38101673,146.6,146.51,3.22880169]
[1768405275901,0.0487774,146.57,146.51,3.22880169]
[1768405276405,3.28919413,146.57,146.45,165.23302117]
[1768405276702,3.28919413,146.57,146.46,3.22880169]
[1768405276903,6.1425,146.55,146.46,3.22880169]
[1768405277295,0.05126265,146.53,146.46,3.22880169]
[1768405280802,0.05126265,146.53,146.47,3.19777837]
[1768405281112,3.07761688,146.6,146.47,3.19777837]
[1768405281409,3.07761688,146.6,146.5,3.19777837]
[1768405281705,3.07761688,146.6,146.44,83.77777837]
[1768405281706,3.07761688,146.54,146.44,83.77777837]
[1768405281907,3.07761688,146.54,146.44,3.19777837]
[1768405283196,0.04910408,146.5,146.44,3.19777837]
[1768405283398,6.19370408,146.5,146.41,3.19777837]
[1768405284007,9.22161688,146.52,146.41,3.19777837]
[1768405284207,3.07761688,146.51,146.41,3.19777837]
[1768405284407,0.0476838,146.47,146.41,3.19777837]
[1768405284710,0.0476838,146.47,146.42,3.19777837]
[1768405284904,0.0476838,146.47,146.4,80.6]
[1768405285108,0.0476838,146.47,146.39,3.19777837]
[1768405285304,6.1936838,146.47,146.39,3.19777837]
[1768405285697,0.0476838,146.47,146.39,3.19777837]
[1768405287212,3.12530068,146.47,146.39,3.19777837]
[1768405287615,3.07761688,146.46,146.36,83.81777837]
[1768405287810,3.07761688,146.46,146.37,3.19777837]
[1768405288611,0.04537959,146.43,146.37,3.19777837]
[1768405288815,3.07761688,146.49,146.37,3.19777837]
[1768405289610,9.22351688,146.47,146.38,3.19777837]
[1768405289812,3.07761688,146.47,146.38,3.19777837]
[1768405290216,3.07761688,146.47,146.39,3.19777837]
[1768405290413,3.07761688,146.47,146.37,3.19777837]
[1768405290612,3.07761688,146.47,146.41,0.04353726]
[1768405291816,6.1465,146.46,146.41,0.04353726]
[1768405294116,3.07761688,146.45,146.36,3.19777837]
[1768405294323,3.07761688,146.45,146.33,3.19777837]
[1768405294618,3.12537267,146.45,146.33,3.19777837]
[1768405294818,3.07761688,146.45,146.33,3.19777837]
[1768405295022,6.1476,146.43,146.34,3.19777837]
[1768405295420,0.05049659,146.4,146.34,3.19777837]
[1768405296016,0.05049659,146.4,146.32,89.98977837]
[1768405296215,0.05049659,146.4,146.33,3.19777837]
[1768405299717,3.12811347,146.4,146.3,3.19777837]
[1768405300327,3.07761688,146.43,146.3,3.19777837]
[1768405300823,3.07761688,146.43,146.34,3.19777837]
[1768405301425,9.22571688,146.42,146.34,3.19777837]
[1768405301623,3.07761688,146.42,146.34,3.19777837]
[1768405302028,3.07761688,146.42,146.37,0.04312848]
[1768405302230,3.07761688,146.45,146.37,0.04312848]
[1768405302540,3.07761688,146.45,146.24,3.19777837]
[1768405302541,3.07761688,146.35,146.24,3.19777837]
[1768405302915,3.07761688,146.35,146.25,3.19777837]
[1768405303116,6.1502,146.37,146.25,3.19777837]
[1768405303332,3.07761688,146.36,146.25,3.19777837]
[1768405304032,6.1518,146.33,146.25,3.19777837]
[1768405304226,0.04932906,146.32,146.25,3.19777837]
[1768405305932,0.04932906,146.32,146.23,86.8357]
[1768405306131,0.04932906,146.32,146.23,6.1557]
[1768405306331,0.04932906,146.32,146.23,9.35347837]
[1768405306532,6.1518,146.33,146.23,9.35347837]
[1768405306834,9.22871688,146.35,146.24,3.19777837]
[1768405307030,3.07761688,146.35,146.24,3.19777837]
[1768405307236,3.07761688,146.35,146.27,0.05131479]
[1768405310832,6.1523,146.32,146.27,0.05131479]
[1768405311539,6.1515,146.34,146.27,0.05131479]
[1768405312335,3.07761688,146.35,146.27,0.05131479]
[1768405313337,6.1507,146.36,146.27,3.30350539]
[1768405314041,6.1507,146.36,146.27,3.2521906]
[1768405314240,6.1507,146.36,146.3,0.0491357]
[1768405317347,11.36005984,146.38,146.3,0.0491357]
[1768405317945,3.1175511,146.38,146.3,3.3013263]
[1768405318143,3.1175511,146.38,146.31,6.1524]
[1768405318342,85.93025984,146.41,146.31,11.49729934]
[1768405319041,5.21025984,146.41,146.35,0.04829366]
[1768405319854,0.04309819,146.39,146.32,3.2521906]
[1768405320245,0.04309819,146.39,146.32,5.34489934]
[1768405320743,5.21025984,146.44,146.35,2.09270874]
[1768405320939,234.38217152,146.48,146.36,3.2521906]
[1768405321140,5.21025984,146.47,146.37,5.34489934]
[1768405321439,5.21025984,146.47,146.38,3.2521906]
[1768405321655,273.5535,146.55,146.4,3.2521906]
[1768405321656,2.09270874,146.49,146.4,3.2521906]
[1768405321952,3.1175511,146.5,146.41,5.34489934]
[1768405322149,5.21025984,146.5,146.41,3.2521906]
[1768405322348,95.5727,146.52,146.38,5.34489934]
[1768405322349,5.21025984,146.48,146.38,5.34489934]
[1768405322543,2.09270874,146.46,146.38,3.2521906]
[1768405323054,5.21025984,146.46,146.38,3.2521906]
[1768405323258,3.1175511,146.43,146.35,3.2521906]
[1768405323643,3.1175511,146.43,146.33,80.72]
[1768405323850,3.1175511,146.41,146.32,3.2521906]
[1768405324255,0.04551644,146.39,146.32,3.2521906]
[1768405326957,6.19481644,146.39,146.3,86.8728]
[1768405327357,6.19481644,146.39,146.3,90.1249906]
[1768405327656,6.1493,146.39,146.3,90.1249906]
[1768405327857,0.04621718,146.36,146.31,3.2521906]
[1768405329058,0.04621718,146.36,146.3,80.72]
[1768405329454,0.04621718,146.36,146.3,83.9721906]
[1768405330260,0.04621718,146.36,146.3,90.1248906]
[1768405330461,3.1175511,146.39,146.31,3.2521906]
[1768405330754,3.1175511,146.39,146.32,0.04404431]
[1768405331862,80.7,146.42,146.32,3.29623491]
[1768405331863,9.2656511,146.42,146.32,3.29623491]
[1768405332161,3.1175511,146.42,146.32,3.29623491]
[1768405332363,3.1175511,146.42,146.32,3.2521906]
[1768405332567,3.1175511,146.42,146.34,6.1511]
[1768405332770,3.1175511,146.42,146.36,0.04325667]
[1768405333560,3.1175511,146.41,146.36,0.04325667]
[1768405333760,3.1175511,146.41,146.3,90.1249906]
[1768405333961,6.19476299,146.4,146.31,3.2521906]
[1768405334265,6.1489,146.4,146.31,3.2521906]
[1768405334660,9.2668511,146.39,146.3,83.9521906]
[1768405335071,0.04506601,146.37,146.3,83.9521906]
[1768405335670,0.04506601,146.37,146.3,90.1049906]
[1768405336167,0.04506601,146.37,146.31,3.2521906]
[1768405336965,0.04506601,146.37,146.31,9.4045906]
[1768405338178,8.45209346,146.42,146.33,9.4034906]
[1768405338472,8.45209346,146.42,146.33,9.44955769]
[1768405338678,8.45209346,146.42,146.33,9.4034906]
[1768405338864,14.60009346,146.42,146.33,9.4034906]
[1768405339581,14.60009346,146.42,146.36,0.04750026]
[1768405340974,6.1484,146.41,146.36,0.04750026]
[1768405341775,8.45209346,146.42,146.36,0.04750026]
[1768405342776,9.19573194,146.41,146.36,0.04750026]
[1768405343971,9.24171107,146.4,146.3,80.7]
[1768405344181,3.09291107,146.4,146.3,83.86809612]
[1768405344477,3.09291107,146.4,146.31,3.16809612]
[1768405344679,3.04733194,146.4,146.31,3.16809612]
[1768405345072,3.04733194,146.4,146.29,3.16809612]
[1768405345379,0.04877466,146.37,146.31,3.16809612]
[1768405345881,2.14100592,146.37,146.31,3.16809612]
[1768405346180,2.14100592,146.37,146.28,83.86809612]
[1768405346374,0.04877466,146.37,146.29,3.16809612]
[1768405346575,2.14100592,146.37,146.29,3.16809612]
[1768405346774,2.09223126,146.37,146.29,3.16809612]
[1768405346976,2.09223126,146.37,146.3,3.16809612]
[1768405347377,2.09223126,146.37,146.32,0.04898104]
[1768405347680,95.646,146.41,146.32,0.04898104]
[1768405347681,3.04733194,146.41,146.32,0.04898104]
[1768405347883,2.09223126,146.4,146.32,3.21707716]
[1768405348081,2.09223126,146.42,146.32,3.21707716]
[1768405348273,2.09223126,146.42,146.33,3.16809612]
[1768405348475,3.04733194,146.47,146.35,3.16809612]
[1768405348774,3.04733194,146.47,146.38,3.16809612]
[1768405348775,2.09223126,146.46,146.38,3.16809612]
[1768405349081,2.09223126,146.44,146.38,3.16809612]
[1768405349274,3.26696738,146.46,146.35,3.16809612]
[1768405349470,3.04733194,146.45,146.35,3.16809612]
[1768405349774,0.04568945,146.42,146.35,3.16809612]
[1768405352082,0.04568945,146.42,146.36,3.16809612]
[1768405352289,3.04733194,146.48,146.36,3.16809612]
[1768405352486,3.04733194,146.48,146.37,3.21497148]
[1768405352886,3.04733194,146.48,146.37,3.16809612]
[1768405353490,6.1463,146.46,146.37,3.16809612]
[1768405353987,3.04733194,146.48,146.37,3.16809612]
[1768405354390,3.04733194,146.48,146.38,3.16809612]
[1768405355183,3.04733194,146.48,146.39,3.16809612]
[1768405355381,3.04733194,146.48,146.42,0.04792985]
[1768405355683,3.04733194,146.48,146.36,3.16809612]
[1768405355883,0.0462642,146.45,146.36,3.16809612]
[1768405356091,3.09359614,146.45,146.36,3.16809612]
[1768405356588,9.19403194,146.45,146.36,3.16809612]
[1768405357888,0.04777414,146.42,146.36,3.16809612]
[1768405358796,0.04777414,146.42,146.36,9.31839612]
[1768405359490,0.04777414,146.42,146.35,80.7]
[1768405359889,0.04777414,146.42,146.35,83.86809612]
[1768405360090,0.04777414,146.42,146.35,90.01889612]
[1768405360590,0.04777414,146.42,146.35,86.8508]
[1768405360986,9.24310608,146.42,146.35,80.7]
[1768405361484,3.09510608,146.42,146.32,3.16809612]
[1768405361884,3.04733194,146.42,146.32,3.16809612]
[1768405362290,0.04652027,146.38,146.32,3.16809612]
[1768405362789,0.04652027,146.38,146.34,6.1512]
[1768405362982,6.1485,146.41,146.34,6.1512]
[1768405363188,23.52733194,146.45,146.34,3.22052461]
[1768405363592,3.04733194,146.44,146.34,3.22052461]
[1768405363787,3.04733194,146.44,146.36,6.1504]
[1768405364286,3.04733194,146.44,146.32,3.16809612]
[1768405364897,0.043926,146.39,146.32,9.31979612]
[1768405365099,0.043926,146.39,146.32,3.16809612]
[1768405365585,0.043926,146.39,146.31,80.7]
[1768405365586,3.09125794,146.39,146.31,80.7]
[1768405365784,3.09125794,146.39,146.29,3.16809612]
[1768405366195,0.043926,146.39,146.31,3.16809612]
[1768405366497,3.04733194,146.42,146.31,3.16809612]
[1768405366901,3.04733194,146.42,146.34,3.16809612]
[1768405367599,0.04473275,146.39,146.34,3.16809612]
[1768405369097,104.27467974,146.47,146.38,3.16809612]
[1768405369098,3.04733194,146.47,146.38,3.16809612]
[1768405369397,3.04733194,146.47,146.37,95.6665]
[1768405369398,3.04733194,146.51,146.4,3.16809612]
[1768405369789,6.1446,146.5,146.41,6.1482]
[1768405369988,9.19193194,146.5,146.41,6.1482]
[1768405370399,9.19193194,146.5,146.44,0.05093617]
[1768405370596,3.04733194,146.5,146.44,0.05093617]
[1768405372092,3.12144454,146.53,146.44,0.05093617]
[1768405372289,3.12144454,146.53,146.44,6.19783617]
[1768405372587,3.12144454,146.53,146.44,6.1469]
[1768405372791,3.12144454,146.53,146.45,6.1465]
[1768405372994,3.12144454,146.53,146.47,0.04478074]
[1768405374001,3.12144454,146.53,146.47,6.19038074]
[1768405374298,3.12144454,146.56,146.5,6.1444]
[1768405374897,3.12144454,146.56,146.48,6.1451]
[1768405375191,3.12144454,146.56,146.52,0.04362479]
[1768405377404,3.12144454,146.6,146.52,0.04362479]
[1768405377891,3.12144454,146.6,146.49,3.12134069]
[1768405378602,0.05125863,146.56,146.49,3.12134069]
[1768405378796,0.05125863,146.56,146.51,6.1438]
[1768405378997,0.05125863,146.56,146.49,3.12134069]
[1768405380404,0.05125863,146.56,146.49,83.78134069]
[1768405380704,0.05125863,146.56,146.49,89.92604069]
[1768405380896,3.17270317,146.56,146.49,86.8047]
[1768405381309,3.17270317,146.56,146.44,104.28917974]
[1768405381310,3.17270317,146.56,146.48,3.12134069]
[1768405381604,3.17270317,146.56,146.45,80.66]
[1768405381802,3.12144454,146.56,146.46,3.12134069]
[1768405382296,0.04704424,146.52,146.46,3.12134069]
[1768405382605,0.04704424,146.52,146.44,6.1468]
[1768405382793,0.04704424,146.52,146.45,3.12134069]
[1768405384601,3.12144454,146.57,146.47,3.12134069]
[1768405385108,3.12144454,146.57,146.47,0.04438408]
[1768405385603,9.26444454,146.54,146.45,80.64]
[1768405385795,3.12144454,146.53,146.44,3.12134069]
[1768405385997,3.12144454,146.53,146.51,0.04901917]
[1768405386208,3.12144454,146.53,146.44,9.26824069]
[1768405386608,0.05077955,146.5,146.45,3.12134069]
[1768405386904,3.12144454,146.53,146.45,3.12134069]
[1768405387915,3.12144454,146.53,146.45,9.26784069]
[1768405388101,3.12144454,146.53,146.48,0.04325856]
[1768405388407,3.12144454,146.56,146.48,0.04325856]
[1768405389007,3.12144454,146.56,146.47,3.12134069]
[1768405389309,3.12144454,146.56,146.51,0.04397907]
[1768405392413,9.26354454,146.56,146.47,89.90694069]
[1768405392710,0.0462449,146.55,146.48,83.76134069]
[1768405393301,0.0462449,146.55,146.48,3.12134069]
[1768405393515,0.0462449,146.55,146.48,83.76134069]
[1768405393702,0.0462449,146.55,146.48,80.64]
[1768405393703,3.16768944,146.55,146.48,80.64]
[1768405393908,9.31018944,146.55,146.46,80.64]
[1768405394207,3.12144454,146.54,146.45,83.76134069]
[1768405394806,0.05254194,146.51,146.45,83.76134069]
[1768405395212,95.4913,146.64,146.47,3.12134069]
[1768405395412,3.12144454,146.59,146.47,3.12134069]
[1768405395610,3.12144454,146.59,146.47,3.16962818]
[1768405395807,3.12144454,146.57,146.47,3.16962818]
[1768405396014,3.12144454,146.57,146.47,3.12134069]
[1768405396607,3.12144454,146.57,146.51,0.04513209]
[1768405397015,3.12144454,146.57,146.47,3.12134069]
[1768405397412,0.04571373,146.55,146.47,3.12134069]
[1768405398115,3.16715827,146.55,146.47,3.12134069]
[1768405398617,3.12144454,146.54,146.44,89.88814069]
[1768405399515,0.0520167,146.5,146.44,9.26814069]
[1768405399712,0.0520167,146.5,146.44,3.12134069]
[1768405400815,0.0520167,146.5,146.43,80.62]
[1768405401018,3.17402053,146.5,146.41,3.20785856]
[1768405401609,3.12200383,146.5,146.41,3.20785856]
[1768405402113,3.12200383,146.54,146.41,3.20785856]
[1768405402913,3.12200383,146.54,146.39,184.94237974]
[1768405402914,3.12200383,146.54,146.47,150.0]
[1768405404410,3.12200383,146.54,146.49,0.04308508]
[1768405404615,6.1433,146.53,146.49,0.04308508]
[1768405405313,3.12200383,146.54,146.49,0.04308508]
[1768405405817,6.1424,146.55,146.49,0.04308508]
[1768405406311,9.26400383,146.57,146.49,0.04308508]
[1768405406517,3.12200383,146.57,146.49,0.04308508]
[1768405407918,6.142,146.56,146.49,0.04308508]
[1768405408419,6.142,146.56,146.49,3.25094364]
[1768405408622,3.12200383,146.59,146.49,3.25094364]
[1768405409220,3.12200383,146.59,146.49,3.20785856]
[1768405409418,6.1416,146.57,146.49,3.20785856]
[1768405409623,3.12200383,146.61,146.53,0.04835391]
[1768405409924,6.1413,146.58,146.53,0.04835391]
[1768405410108,6.1413,146.58,146.51,3.20785856]
[1768405410109,3.12200383,146.59,146.48,83.82785856]
[1768405410310,0.04461571,146.58,146.49,3.20785856]
[1768405410511,6.18601571,146.58,146.49,3.20785856]
[1768405410812,6.1414,146.58,146.49,3.20785856]
[1768405411012,3.12200383,146.59,146.49,3.20785856]
[1768405411417,6.1417,146.57,146.49,3.20785856]
[1768405411718,0.04345222,146.55,146.49,3.20785856]
[1768405411918,0.04345222,146.55,146.47,218.91383823]
[1768405411919,3.16545605,146.55,146.47,218.91383823]
[1768405412114,3.16545605,146.55,146.47,138.29383823]
[1768405412311,57.76860448,146.56,146.47,138.29383823]
[1768405412511,6.1434,146.53,146.5,0.04857966]
[1768405412816,95.5313,146.58,146.5,0.04857966]
[1768405413014,80.62,146.59,146.5,3.25643822]
[1768405413217,3.12200383,146.58,146.48,5.32269459]
[1768405413915,6.1425,146.55,146.47,186.54981947]
[1768405414114,3.12200383,146.57,146.47,186.54981947]
[1768405414314,3.12200383,146.55,146.47,105.92981947]
[1768405414514,6.1442,146.51,146.47,95.07451947]
[1768405414717,3.12200383,146.53,146.47,72.37381947]
[1768405414919,3.12200383,146.51,146.41,1.18761198]
[1768405415121,3.12200383,146.51,146.42,3.20785856]
[1768405415915,0.04709996,146.48,146.42,3.20785856]
[1768405416111,6.19259996,146.48,146.42,3.20785856]
[1768405416517,0.04709996,146.48,146.42,3.20785856]
[1768405417421,6.1449,146.5,146.42,3.20785856]
[1768405417616,6.1449,146.5,146.45,3.20785856]
[1768405418426,6.144,146.52,146.45,80.62]
[1768405418623,6.144,146.52,146.46,3.20785856]
[1768405418827,95.5632,146.53,146.46,3.20785856]
[1768405419024,95.5632,146.53,146.43,3.20785856]
[1768405419331,95.5632,146.53,146.48,0.04979631]
[1768405419832,6.1446,146.5,146.48,0.04979631]
[1768405422927,6.1451,146.49,146.43,3.20785856]
[1768405423130,95.5913,146.49,146.4,3.20785856]
[1768405424132,95.599,146.48,146.4,3.20785856]
[1768405424433,0.0511509,146.46,146.4,3.20785856]
[1768405424823,6.1471,146.44,146.4,3.20785856]
[1768405425026,0.0511509,146.46,146.4,3.20785856]
[1768405425333,0.0511509,146.46,146.37,5.32269459]
[1768405425334,0.0511509,146.46,146.37,8.53055315]
[1768405425731,0.0511509,146.46,146.38,3.20785856]
[1768405426031,6.146,146.47,146.38,3.20785856]
[1768405426229,0.04505086,146.43,146.38,3.20785856]
[1768405426429,80.64,146.48,146.38,3.20785856]
[1768405426632,80.64,146.48,146.41,0.0503528]
[1768405427022,95.6093,146.46,146.35,1.18866668]
[1768405427220,95.6323,146.43,146.32,3.20785856]
[1768405427434,95.6229,146.44,146.32,3.20785856]
[1768405427435,6.1482,146.42,146.32,3.20785856]
[1768405427624,95.6093,146.46,146.34,3.20785856]
[1768405427828,95.6218,146.44,146.34,3.20785856]
[1768405428431,0.04604192,146.4,146.34,3.20785856]
[1768405429926,0.04604192,146.4,146.34,83.86785856]
[1768405430122,6.1478,146.43,146.36,0.04767727]
[1768405430327,95.6166,146.45,146.36,3.25553583]
[1768405430727,95.6166,146.45,146.36,3.20785856]
[1768405431136,95.6216,146.44,146.36,3.20785856]
[1768405431432,95.6166,146.45,146.36,3.20785856]
[1768405431627,95.6166,146.45,146.39,0.04363212]
[1768405432226,6.1479,146.43,146.39,0.04363212]
[1768405432834,80.64,146.48,146.39,3.24654915]
[1768405433132,95.5889,146.49,146.4,3.20291703]
[1768405434131,6.1474,146.44,146.37,3.20291703]
[1768405434529,6.1474,146.44,146.38,80.66]
[1768405434936,95.6051,146.47,146.37,83.86291703]
[1768405434937,6.1476,146.43,146.37,83.86291703]
[1768405435236,6.1476,146.43,146.37,80.66]
[1768405435630,6.148,146.42,146.34,3.20291703]
[1768405435939,6.148,146.42,146.39,0.04337226]
[1768405436530,6.148,146.42,146.37,80.66]
[1768405436831,6.148,146.42,146.39,0.05166499]